bitfinex/quotes_ETHUSD_20240721
["timestamp","ask_amount","ask_price","bid_price","bid_amount"]
[1721542551173,2.85396,3503.9,3503.5,0.14554933]
[1721542551577,2.85396,3503.9,3503.1,13.59537]
[1721542551774,2.85396,3503.9,3503.6,0.14551407]
[1721542551984,2.85396,3503.9,3503.1,15.07524057]
[1721542551985,2.85405,3503.8,3503.7,0.14550767]
[1721542552308,2.4429,3503.8,3503.1,7.45]
[1721542552602,2.85428,3503.5,3503.1,7.45]
[1721542553611,2.85453,3503.2,3503.1,7.45]
[1721542553767,2.85453,3503.2,3502.6,2.4343]
[1721542554177,5.29727,3503.4,3502.6,6.1323]
[1721542554579,5.29695,3503.8,3503.0,0.843]
[1721542554797,5.29679,3504.0,3503.2,0.843]
[1721542555001,5.29679,3504.0,3503.3,2.85444]
[1721542556417,2.85396,3503.9,3503.2,1.17073]
[1721542556910,2.85405,3503.8,3503.2,0.32773]
[1721542558322,2.85405,3503.8,3503.1,5.28891]
[1721542558524,3.843,3504.3,3503.2,0.843]
[1721542558808,0.843,3504.1,3503.3,2.4343]
[1721542559028,0.38359,3504.0,3503.3,2.4343]
[1721542559305,2.85402,3503.9,3503.3,2.4343]
[1721542559514,2.85404,3503.8,3503.3,2.4343]
[1721542560782,2.85412,3503.7,3503.3,2.4343]
[1721542561019,2.85412,3503.7,3503.1,2.85455]
[1721542562619,2.85399,3503.9,3503.1,2.85455]
[1721542562789,2.85399,3503.9,3503.2,1.643661]
[1721542562995,2.85399,3503.9,3503.2,4.498181]
[1721542564400,2.85399,3503.9,3503.3,0.14555714]
[1721542564594,2.4429,3503.8,3503.3,0.14555714]
[1721542564779,5.29695,3503.8,3503.3,0.14555714]
[1721542565010,5.29695,3503.8,3503.4,0.14552188]
[1721542565241,5.29695,3503.8,3503.2,2.85452]
[1721542565510,5.29695,3503.8,3503.5,0.14545269]
[1721542565822,5.29695,3503.8,3503.2,2.85452]
[1721542565988,5.29695,3503.8,3503.6,0.14541743]
[1721542566324,5.29695,3503.8,3503.7,0.14538218]
[1721542566506,6.496333,3503.8,3503.7,0.14538218]
[1721542566707,6.496333,3503.8,3503.0,6.13193]
[1721542566915,2.85413,3503.7,3503.0,6.13193]
[1721542567087,2.85421,3503.6,3502.9,7.45]
[1721542567417,2.4046,3503.6,3502.9,7.45]
[1721542567622,2.85434,3503.5,3502.9,7.45]
[1721542568626,2.85434,3503.5,3502.9,10.30474]
[1721542568783,2.4046,3503.6,3502.9,11.943599]
[1721542569211,2.4046,3503.6,3502.9,9.088859]
[1721542569449,2.85429,3503.5,3502.9,9.088859]
[1721542569621,2.85429,3503.5,3502.9,7.45]
[1721542570418,2.85429,3503.5,3502.6,3.69798]
[1721542571312,2.85453,3503.2,3502.6,3.69798]
[1721542574828,2.85453,3503.2,3502.5,7.45]
[1721542574829,2.85477,3502.9,3502.5,7.45]
[1721542575559,3.69761,3503.1,3502.5,7.45]
[1721542575851,2.85487,3502.8,3502.5,7.45]
[1721542578223,5.14057,3502.8,3502.5,7.45]
[1721542579238,5.14057,3502.8,3502.1,2.85536]
[1721542579776,5.14057,3502.8,3502.2,0.14575539]
[1721542583783,1.73836918,3503.1,3502.2,0.14575539]
[1721542583784,2.85511,3502.5,3502.2,0.14575539]
[1721542584486,2.85511,3502.5,3502.3,0.14574284]
[1721542584638,2.85511,3502.5,3502.0,7.45]
[1721542584843,2.85511,3502.5,3502.1,0.14581341]
[1721542585692,2.85511,3502.5,3501.9,3.2823]
[1721542585857,2.85511,3502.5,3502.2,0.14577812]
[1721542586177,2.85511,3502.5,3501.9,3.2823]
[1721542586376,2.85511,3502.5,3502.3,0.14574284]
[1721542586583,2.85511,3502.5,3501.9,3.2823]
[1721542586776,2.85511,3502.5,3502.4,0.14570756]
[1721542586944,2.85511,3502.5,3501.9,3.2823]
[1721542587280,2.85511,3502.5,3501.9,5.865096]
[1721542587486,2.85511,3502.5,3502.0,0.14584869]
[1721542588747,5.29164,3502.7,3502.0,0.14584869]
[1721542589059,2.85504,3502.6,3502.0,0.14584869]
[1721542592486,2.85516,3502.5,3502.0,0.14584869]
[1721542592893,2.85516,3502.5,3501.8,2.85565]
[1721542593104,2.85516,3502.5,3502.1,0.14586992]
[1721542593268,2.85516,3502.5,3501.8,4.488707]
[1721542593467,2.85516,3502.5,3502.2,0.14583464]
[1721542593683,2.85516,3502.5,3501.8,4.488707]
[1721542593880,2.85516,3502.5,3502.3,0.14579936]
[1721542594100,2.85516,3502.5,3501.8,2.85565]
[1721542594307,2.85516,3502.5,3502.4,0.14576408]
[1721542594594,2.85516,3502.5,3501.8,2.85565]
[1721542594813,2.85516,3502.5,3502.4,0.14576408]
[1721542595007,2.85516,3502.5,3501.8,2.85565]
[1721542595504,2.85516,3502.5,3501.9,0.9889405]
[1721542596899,2.85516,3502.5,3501.9,3.8445105]
[1721542598984,2.85516,3502.5,3501.9,3.0015105]
[1721542599900,2.85516,3502.5,3501.9,0.1459405]
[1721542599901,2.85536,3502.2,3501.9,0.1459405]
[1721542600070,5.33094,3502.4,3501.6,7.45]
[1721542600271,2.85527,3502.3,3501.7,3.84475984]
[1721542601416,3.37106918,3502.8,3501.9,0.843]
[1721542601600,3.37106918,3502.8,3502.1,2.85541]
[1721542601601,2.85497,3502.7,3502.1,2.85541]
[1721542601918,5.4757,3502.8,3502.2,0.1458334]
[1721542601919,2.85502,3502.6,3502.2,0.1458334]
[1721542602071,2.85502,3502.6,3501.9,3.69854]
[1721542602276,2.85502,3502.6,3502.0,0.14591073]
[1721542602677,2.85542,3502.1,3502.0,0.14591073]
[1721542602918,3.510799,3502.1,3501.6,7.45]
[1721542603077,3.510799,3502.1,3501.3,15.09607]
[1721542603078,2.85542,3502.1,3501.7,0.14118937]
[1721542603279,2.85553,3502.0,3501.3,15.09607]
[1721542603478,2.85553,3502.0,3501.8,0.14115408]
[1721542603778,2.85553,3502.0,3501.3,15.09607]
[1721542604278,2.4757,3501.9,3501.4,0.14129526]
[1721542605579,2.4757,3501.9,3501.4,5.63592979]
[1721542605910,0.843,3501.6,3501.4,0.14129526]
[1721542606077,0.843,3501.6,3500.8,0.1414335]
[1721542606410,0.843,3501.6,3500.9,0.1368376]
[1721542607303,2.85591,3501.5,3500.9,0.1368376]
[1721542609307,2.85576,3501.7,3500.9,2.9932376]
[1721542609897,5.33129,3501.9,3501.0,3.69926]
[1721542610238,5.33129,3501.9,3501.1,0.13679165]
[1721542611143,2.4757,3501.9,3501.2,3.69911]
[1721542611299,2.4757,3501.9,3501.3,0.13672105]
[1721542611498,5.33129,3501.9,3501.3,0.13672105]
[1721542611826,2.85575,3501.7,3501.3,0.13672105]
[1721542612234,2.85575,3501.7,3501.0,2.85627]
[1721542612395,2.85575,3501.7,3501.4,0.13667576]
[1721542612595,4.058754,3501.7,3500.9,3.69939]
[1721542612903,4.058754,3501.7,3500.9,2.85639]
[1721542613103,4.058754,3501.7,3501.0,0.13681698]
[1721542613666,4.058754,3501.7,3500.4,7.45]
[1721542613667,0.843,3501.1,3500.4,7.45]
[1721542613795,0.843,3501.1,3500.0,10.0092673]
[1721542613998,0.843,3501.1,3499.3,1.49435679]
[1721542613999,2.85719,3500.0,3499.0,0.59790497]
[1721542614204,2.85719,3500.0,3498.5,1.49476244]
[1721542614205,2.85773,3499.3,3498.8,0.89685746]
[1721542614405,2.85828,3498.6,3498.5,0.59790497]
[1721542614652,2.85828,3498.6,3497.4,0.2081253]
[1721542614653,3.40833,3498.6,3497.4,0.2081253]
[1721542614820,3.40833,3498.6,3497.5,0.843]
[1721542614821,2.85848,3498.4,3497.5,0.843]
[1721542615025,2.85848,3498.4,3497.4,0.2081253]
[1721542615026,0.54115091,3498.3,3497.4,0.2081253]
[1721542615346,2.85862,3498.2,3497.4,0.0161253]
[1721542615538,0.49115091,3498.3,3497.4,0.0161253]
[1721542615843,0.5913441,3498.3,3497.4,0.0161253]
[1721542616022,0.5913441,3498.4,3497.4,0.0161253]
[1721542616356,1.1826882,3498.7,3497.4,0.0161253]
[1721542616357,3.40853,3498.3,3497.4,0.0161253]
[1721542616503,3.40853,3498.3,3495.2,6.87470734]
[1721542616504,2.3863,3496.3,3495.9,0.05719103]
[1721542616702,2.8591,3497.6,3495.9,1.923]
[1721542616703,0.5913441,3497.6,3495.9,1.923]
[1721542616941,2.85958,3497.1,3495.4,2.3379]
[1721542617143,0.5913441,3498.4,3495.5,2.86074]
[1721542617144,3.55,3498.1,3495.5,2.86074]
[1721542617342,2.85851,3498.4,3495.6,3.42535693]
[1721542617343,2.85903,3497.7,3495.6,3.42535693]
[1721542617499,2.85917,3497.6,3495.6,3.42535693]
[1721542617700,3.0,3497.5,3495.7,2.86064]
[1721542617941,3.0,3497.5,3495.6,0.56469693]
[1721542618143,2.8594,3497.3,3495.6,0.56469693]
[1721542618346,0.34094,3497.3,3495.7,0.57634369]
[1721542618550,2.85956,3497.1,3495.4,2.3379]
[1721542618731,0.55,3497.2,3495.4,2.3379]
[1721542619044,2.85956,3497.1,3495.4,2.3379]
[1721542619354,2.8591,3497.6,3495.4,2.3379]
[1721542619355,22.21094716,3497.0,3496.1,1.923]
[1721542619647,22.21094716,3497.0,3496.1,4.78326]
[1721542619818,22.21094716,3497.0,3496.5,1.923]
[1721542620143,2.85771,3499.4,3495.9,5.86043]
[1721542620144,1.923,3498.2,3495.9,5.86043]
[1721542620347,1.923,3498.2,3495.7,1.923]
[1721542620348,2.85939,3497.3,3495.7,1.923]
[1721542620548,3.47806145,3498.5,3495.8,1.09948585]
[1721542620766,2.85876,3498.1,3496.2,2.86024]
[1721542621040,4.41349145,3498.5,3496.1,1.923]
[1721542621041,1.55506145,3498.5,3496.9,1.923]
[1721542621246,1.55506145,3498.5,3497.0,2.85953]
[1721542621402,2.85858,3498.3,3497.1,3.0]
[1721542621622,1.55506145,3498.5,3497.2,0.30739405]
[1721542621824,1.55506145,3498.5,3497.2,3.24062903]
[1721542622065,1.55506145,3498.5,3497.2,0.38124903]
[1721542622238,2.85856,3498.3,3497.2,0.07385498]
[1721542622563,4.41346145,3498.5,3497.0,2.85954]
[1721542622737,1.55506145,3498.5,3497.1,3.07389037]
[1721542623338,1.55506145,3498.5,3497.1,3.1310643]
[1721542623563,1.55506145,3498.5,3497.8,2.8589]
[1721542623766,1.55506145,3498.5,3497.9,0.07357735]
[1721542623956,2.85872,3498.1,3497.9,0.07357735]
[1721542624163,2.85894,3497.8,3496.6,2.3379]
[1721542624463,2.85872,3498.1,3496.7,0.07400193]
[1721542624670,2.85905,3497.7,3496.7,0.07400193]
[1721542624827,2.85872,3498.1,3496.8,0.24119019]
[1721542625030,1.69706145,3498.5,3496.8,3.10091019]
[1721542625228,2.85857,3498.3,3496.9,2.93357115]
[1721542625437,1.69706145,3498.5,3497.2,2.85941]
[1721542625927,4.69706145,3498.5,3497.3,2.93330454]
[1721542626259,4.69706145,3498.5,3497.4,0.29333045]
[1721542626464,2.85864,3498.2,3497.4,0.29333045]
[1721542626663,1.69706145,3498.5,3497.5,0.07390378]
[1721542626962,1.69706145,3498.5,3497.3,7.45]
[1721542626963,2.85911,3497.6,3497.3,7.45]
[1721542627171,2.85911,3497.6,3496.6,2.3379]
[1721542627172,2.85911,3497.6,3497.4,0.07393916]
[1721542627344,2.85894,3497.8,3496.8,7.45]
[1721542627549,2.85894,3497.8,3496.9,0.07411608]
[1721542627732,2.8588,3498.0,3496.9,0.07411608]
[1721542627932,2.85878,3498.0,3496.9,0.07411608]
[1721542628154,4.30036549,3498.4,3497.4,2.85925]
[1721542628466,1.30036549,3498.4,3497.5,0.07390378]
[1721542628652,1.30036549,3498.4,3498.0,2.85876]
[1721542629045,0.142,3498.5,3498.1,2.93238154]
[1721542629679,0.142,3498.5,3498.1,0.07369154]
[1721542629880,0.142,3498.5,3498.1,0.36693669]
[1721542630038,0.142,3498.5,3498.4,2.85844]
[1721542630242,0.142,3498.5,3498.4,5.71688]
[1721542630439,0.142,3498.5,3498.4,11.64890545]
[1721542630675,1e-08,3498.5,3498.4,14.21290545]
[1721542630852,5.13891,3500.9,3498.4,5.63758545]
[1721542631058,2.85691,3500.3,3499.0,7.45]
[1721542631367,2.85732,3499.8,3499.1,0.07333798]
[1721542631688,2.85674,3500.5,3499.1,0.07333798]
[1721542631689,2.85774,3499.3,3499.1,0.07333798]
[1721542631885,2.564,3500.3,3499.1,0.07333798]
[1721542632183,2.564,3500.3,3498.5,19.69]
[1721542632184,2.85706,3500.1,3498.5,19.69]
[1721542632363,2.85763,3499.4,3499.2,0.07068372]
[1721542632683,0.542106,3500.0,3498.5,19.832]
[1721542632684,2.85748,3499.6,3498.5,19.832]
[1721542632911,2.85748,3499.6,3499.3,0.07064781]
[1721542633083,2.85763,3499.4,3499.3,0.07064781]
[1721542633286,2.8573,3499.9,3498.5,19.832]
[1721542633590,3.6399406,3499.8,3499.3,0.07066308]
[1721542633881,0.6399406,3499.8,3499.0,2.85795]
[1721542634474,0.6399406,3499.8,3499.1,0.07073377]
[1721542634673,5.8569,3500.3,3499.3,2.85763]
[1721542635047,3.0,3500.3,3499.4,0.07062774]
[1721542635248,2.85729,3499.9,3499.4,0.07062774]
[1721542635493,5.564,3500.3,3499.4,0.07062774]
[1721542635494,2.85721,3500.0,3499.4,0.07062774]
[1721542635669,2.85721,3500.0,3498.7,2.85815]
[1721542635670,2.85743,3499.7,3498.7,2.85815]
[1721542635985,0.285743,3499.6,3498.8,0.07081833]
[1721542636147,0.285743,3499.6,3498.6,2.85826]
[1721542636350,2.85757,3499.5,3498.9,0.07078298]
[1721542636553,2.85757,3499.5,3498.5,7.592]
[1721542636763,2.85757,3499.5,3499.0,0.07074537]
[1721542636997,0.6000743,3499.4,3498.5,10.45035]
[1721542637205,2.85779,3499.3,3499.1,0.07071002]
[1721542637497,0.6000743,3499.4,3498.5,7.592]
[1721542637819,3.0,3499.8,3499.2,0.07067467]
[1721542638118,3.0,3499.8,3498.5,7.592]
[1721542638119,2.85796,3499.0,3498.5,7.592]
[1721542638406,2.85828,3498.6,3498.5,0.142]
[1721542638703,0.571636,3498.6,3498.5,0.142]
[1721542639363,6.429916,3498.6,3498.5,0.142]
[1721542640486,9.288196,3498.6,3498.5,0.142]
[1721542640685,9.838196,3498.6,3498.5,0.142]
[1721542640909,6.429916,3498.6,3498.5,0.142]
[1721542641063,3.571636,3498.6,3498.5,0.142]
[1721542641402,0.571636,3498.6,3498.5,0.142]
[1721542641563,3.571636,3498.6,3498.5,0.142]
[1721542641761,1.18613881,3499.2,3498.5,0.142]
[1721542641965,1.18613881,3499.2,3498.5,0.21299963]
[1721542642386,1.18613881,3499.2,3498.6,2.85823]
[1721542642565,1.18613881,3499.2,3498.6,2.92919427]
[1721542642915,1.18613881,3499.2,3498.6,0.07096427]
[1721542643060,1.18613881,3499.2,3498.7,2.85818]
[1721542643262,1.18613881,3499.2,3498.6,0.07096427]
[1721542643561,0.40437688,3499.1,3498.7,0.07092892]
[1721542643766,0.40437688,3499.1,3498.5,3.00036]
[1721542643967,0.40437688,3499.1,3498.6,0.07096427]
[1721542644243,1.18613881,3499.2,3498.6,0.07096427]
[1721542644443,1.18613881,3499.2,3498.6,2.92919427]
[1721542644739,4.04393881,3499.2,3498.6,0.07096427]
[1721542644939,1.18613881,3499.2,3498.6,0.07096427]
[1721542646002,1.18613881,3499.2,3499.0,2.85793]
[1721542646233,1.18613881,3499.2,3498.6,0.07096427]
[1721542646401,1.18613881,3499.2,3499.1,0.07078752]
[1721542646601,1.18613881,3499.2,3498.9,2.85802]
[1721542646906,1.18613881,3499.2,3499.1,5.71574]
[1721542647424,0.54366549,3500.8,3499.7,2.85738]
[1721542647623,2.85684,3500.4,3499.6,7.45]
[1721542647840,2.85669,3500.6,3499.8,0.07045592]
[1721542648015,0.54366549,3500.8,3499.7,2.92781125]
[1721542648221,0.28261655,3500.7,3499.9,0.07042059]
[1721542648549,1.45353752,3500.6,3500.0,0.07038526]
[1721542648755,0.28261655,3500.7,3499.9,2.85717]
[1721542648965,2.85673,3500.5,3500.1,0.07027023]
[1721542649263,0.28261655,3500.7,3499.6,7.45]
[1721542649264,3.0,3500.4,3499.6,7.45]
[1721542649542,0.585665,3500.3,3499.6,7.45]
[1721542649698,3.442625,3500.3,3499.6,7.45]
[1721542649901,3.442625,3500.3,3499.7,0.0703697]
[1721542649902,3.0,3500.2,3499.7,0.0703697]
[1721542650329,2.85698,3500.2,3499.7,0.0703697]
[1721542650623,5.85712,3500.1,3499.7,0.0703697]
[1721542650826,0.9442785,3500.0,3499.7,0.0703697]
[1721542651002,0.9442785,3500.0,3499.3,7.45]
[1721542651207,3.585665,3500.3,3499.8,0.07033437]
[1721542651208,0.585665,3500.3,3499.8,0.07033437]
[1721542651427,1.45364679,3500.2,3499.3,7.45]
[1721542651625,3.0,3500.5,3499.9,0.07029904]
[1721542651831,1.11294248,3500.7,3499.8,2.85723]
[1721542652044,1.45350821,3500.6,3500.0,0.07026371]
[1721542652248,0.54229607,3500.5,3499.9,0.07029904]
[1721542652542,3.0,3500.6,3500.0,0.07026371]
[1721542652746,1.11294248,3500.7,3500.0,0.07026371]
[1721542652951,2.85682,3500.4,3499.3,10.30769]
[1721542653130,1.45353508,3500.3,3499.4,2.92809571]
[1721542653338,0.43103551,3500.2,3499.4,2.92809571]
[1721542654447,1.45357264,3500.1,3499.4,0.07047571]
[1721542655019,1.45357264,3500.1,3499.5,2.85753]
[1721542655338,1.45357264,3500.1,3499.6,0.07040504]
[1721542655531,1.45357264,3500.1,3498.5,0.142]
[1721542655532,6.81748,3498.6,3498.5,0.142]
[1721542655713,6.81748,3498.6,3496.7,0.14414461]
[1721542655714,1.7,3496.3,3496.1,2.3324]
[1721542655956,1.7,3496.3,3496.2,2.86024]
[1721542656249,1.7,3496.3,3496.1,2.3324]
[1721542656435,1.7,3496.3,3496.0,2.86033]
[1721542656841,1.7,3496.3,3495.7,2.86058]
[1721542657242,1.7,3496.3,3495.4,2.3324]
[1721542657412,1.7,3496.3,3495.8,2.86056]
[1721542657756,1.7,3496.3,3496.0,2.86041]
[1721542658085,1.7,3496.3,3496.2,2.86024]
[1721542658355,1.7,3496.3,3496.1,3.432417]
[1721542658356,1.7,3496.3,3496.1,0.572097]
[1721542658536,1.7,3496.3,3496.2,2.86024]
[1721542659668,1.7,3496.3,3496.1,2.86027]
[1721542659809,1.7,3496.3,3496.2,5.72048]
[1721542660029,1.7,3496.3,3496.2,2.86024]
[1721542660625,1.7,3496.3,3496.2,5.72048]
[1721542660847,1.7,3496.3,3496.2,6.593528]
[1721542661048,1.7,3496.3,3496.2,9.603528]
[1721542661250,1.7,3496.3,3496.2,6.593528]
[1721542662041,1.7,3496.3,3496.2,3.733288]
[1721542663246,1.7,3496.3,3496.2,6.593528]
[1721542663889,1.7,3496.3,3496.2,3.733288]
[1721542664476,1.7,3496.3,3496.2,0.873048]
[1721542664689,1.7,3496.3,3495.9,2.86048]
[1721542665393,1.7,3496.3,3496.1,2.86026]
[1721542665597,1.7,3496.3,3495.9,2.86048]
[1721542665804,1.7,3496.3,3496.0,2.8604]
[1721542666787,1.7,3496.3,3496.2,2.86024]
[1721542667287,1.7,3496.3,3496.2,6.292544]
[1721542667689,1.7,3496.3,3496.2,3.432304]
[1721542668373,1.7,3496.3,3496.2,2.86024]
[1721542669286,1.7,3496.3,3496.2,0.04952506]
[1721542669647,1.7,3496.3,3496.1,2.86032]
[1721542669860,1.7,3496.3,3496.2,0.04952506]
[1721542670624,1.7,3496.3,3495.4,5.1933]
[1721542670887,1.7,3496.3,3496.2,0.04952506]
[1721542671110,1.7,3496.3,3495.5,0.51933]
[1721542671447,1.7,3496.3,3495.6,0.04973752]
[1721542671698,1.7,3496.3,3495.7,2.86063]
[1721542672068,1.7,3496.3,3495.8,0.0496667]
[1721542672589,1.7,3496.3,3495.9,0.04963128]
[1721542672751,1.7,3496.3,3495.7,2.86063]
[1721542673064,1.7,3496.3,3495.8,0.04966943]
[1721542673447,1.7,3496.3,3495.7,2.86063]
[1721542673650,1.7,3496.3,3495.9,0.04963402]
[1721542673883,1.7,3496.3,3495.9,2.86048]
[1721542674085,1.7,3496.3,3496.0,0.04959861]
[1721542674292,1.7,3496.3,3496.2,5.72048]
[1721542674453,1.7,3496.3,3496.2,2.86024]
[1721542674648,1.7,3496.3,3496.2,0.04952779]
[1721542675097,1.7,3496.3,3496.0,2.86041]
[1721542675392,1.7,3496.3,3496.1,0.0495632]
[1721542675594,1.7,3496.3,3495.9,2.86049]
[1721542675753,1.7,3496.3,3496.0,0.04959861]
[1721542678471,1.7,3496.3,3495.7,2.86065]
[1721542678678,1.7,3496.3,3493.0,1.19580995]
[1721542678679,2.4559,3494.4,3493.6,0.44844567]
[1721542679021,5.72458,3493.7,3493.6,0.44844567]
[1721542679176,5.72458,3493.7,3492.0,1.145923]
[1721542679177,2.86254,3493.4,3492.0,1.145923]
[1721542679493,2.86279,3493.1,3491.8,2.94383]
[1721542679657,2.86288,3493.0,3491.5,2.76585]
[1721542679854,2.8626,3493.4,3491.6,0.516845]
[1721542680054,2.8626,3493.4,3491.3,2.4026]
[1721542680055,0.55,3493.3,3491.3,2.4026]
[1721542680313,0.55,3493.3,3490.3,0.2081253]
[1721542680314,2.4559,3493.0,3490.3,0.2081253]
[1721542680598,0.01744004,3493.2,3490.3,0.2081253]
[1721542680599,0.01744004,3493.2,3491.0,2.8645]
[1721542680803,2.88016004,3493.2,3491.6,2.86399]
[1721542681007,0.55,3493.1,3491.7,2.86393]
[1721542681157,0.36045604,3493.0,3491.7,0.286393]
[1721542681359,0.01744004,3493.0,3491.1,2.86441]
[1721542681576,0.01744004,3493.0,3491.7,2.86389]
[1721542681759,0.01744004,3493.0,3492.0,2.86368]
[1721542682185,0.01744004,3493.0,3492.1,2.8636]
[1721542683361,0.01744004,3493.0,3491.8,2.86381]
[1721542683558,0.01744004,3493.0,3490.8,0.2859]
[1721542683559,0.01742761,3492.9,3491.7,2.86385]
[1721542683807,0.01742761,3492.9,3491.8,2.86384]
[1721542683972,0.01742761,3492.9,3492.1,2.8636]
[1721542684176,0.01742761,3492.9,3491.8,2.86384]
[1721542684384,0.01742761,3492.9,3491.7,7.45]
[1721542684596,0.01742761,3492.9,3492.3,2.86342]
[1721542685201,0.01742761,3492.9,3491.9,2.86369]
[1721542685378,0.01742761,3492.9,3492.2,2.86351]
[1721542686015,0.01742761,3492.9,3492.3,2.8634]
[1721542686610,0.01742761,3492.9,3492.4,0.03788175]
[1721542687020,0.01742761,3492.9,3492.6,2.86312]
[1721542687313,0.01742761,3492.9,3492.7,0.03777532]
[1721542687664,0.01742761,3492.9,3492.3,2.86343]
[1721542687866,0.01742761,3492.9,3492.8,0.03773984]
[1721542688092,0.01742761,3492.9,3492.3,2.86343]
[1721542688291,0.01742761,3492.9,3492.8,0.03773984]
[1721542688493,0.01742761,3492.9,3492.3,2.86337]
[1721542688680,0.01742761,3492.9,3492.8,0.0379613]
[1721542688887,0.01742761,3492.9,3492.4,2.86335]
[1721542689068,0.01742761,3492.9,3492.3,0.286337]
[1721542689069,0.01742761,3492.9,3492.8,0.0379602]
[1721542689277,0.01742761,3492.9,3492.3,2.86337]
[1721542689479,0.01742761,3492.9,3492.8,0.03795965]
[1721542689673,0.01742761,3492.9,3492.3,2.86337]
[1721542690236,0.01742761,3492.9,3492.5,2.86325]
[1721542690722,0.01742761,3492.9,3492.6,0.0382202]
[1721542691891,0.01742761,3492.9,3492.6,2.9013802]
[1721542692418,0.01742761,3492.9,3492.7,2.86309]
[1721542692587,0.01742761,3492.9,3492.7,2.90127803]
[1721542692789,0.01742761,3492.9,3492.7,0.03818803]
[1721542693212,0.01742761,3492.9,3491.8,0.745]
[1721542693213,0.01742761,3492.9,3492.8,2.86303]
[1721542693524,0.01742761,3492.9,3492.8,2.90118255]
[1721542693887,0.01742761,3492.9,3492.8,0.03815255]
[1721542694589,0.01742761,3492.9,3492.8,2.90118255]
[1721542694790,0.01742761,3492.9,3492.8,0.03815255]
[1721542695020,0.01742761,3492.9,3492.5,2.86327]
[1721542695232,0.01742761,3492.9,3492.8,0.03815255]
[1721542695435,0.01742761,3492.9,3492.5,0.286327]
[1721542695589,0.01742761,3492.9,3492.8,0.03815255]
[1721542695790,0.01742761,3492.9,3491.8,0.745]
[1721542695791,0.01742761,3492.9,3492.7,2.8631]
[1721542695989,0.01742761,3492.9,3492.8,0.03815255]
[1721542696190,0.01742761,3492.9,3492.8,2.90118255]
[1721542697532,0.01742761,3492.9,3492.8,0.03815255]
[1721542698286,0.01742761,3492.9,3492.6,2.86319]
[1721542698489,0.01742761,3492.9,3492.8,0.03815255]
[1721542698689,0.01742761,3492.9,3492.7,0.03818803]
[1721542698886,0.01742761,3492.9,3492.8,0.03815255]
[1721542699335,0.01742761,3492.9,3492.6,2.86318]
[1721542699518,0.01742761,3492.9,3492.8,0.03815255]
[1721542700054,0.01742761,3492.9,3492.6,2.86319]
[1721542700337,0.01742761,3492.9,3492.8,0.03815255]
[1721542700550,0.01742761,3492.9,3492.7,2.90125803]
[1721542700703,0.01742761,3492.9,3492.8,0.03815255]
[1721542701419,0.01742761,3492.9,3492.7,2.86308]
[1721542701617,0.01742761,3492.9,3492.8,0.03815255]
[1721542703739,0.01742761,3492.9,3492.8,2.90118255]
[1721542704340,0.01742761,3492.9,3492.8,0.03815255]
[1721542704719,0.01742761,3492.9,3492.6,2.86319]
[1721542705107,0.01742761,3492.9,3492.7,0.03817593]
[1721542706002,0.01742761,3492.9,3492.5,2.86321]
[1721542706327,0.01742761,3492.9,3492.8,0.03814045]
[1721542706531,0.01742761,3492.9,3492.6,2.86316]
[1721542706846,0.01742761,3492.9,3492.7,0.03817593]
[1721542708870,0.01742761,3492.9,3492.5,2.86325]
[1721542709379,0.01742761,3492.9,3492.4,2.86335]
[1721542709555,0.01742761,3492.9,3492.6,0.0382114]
[1721542709728,0.01742761,3492.9,3492.5,2.86327]
[1721542710130,0.01742761,3492.9,3492.6,0.0382114]
[1721542711029,0.01742761,3492.9,3492.3,2.86343]
[1721542711370,0.01742761,3492.9,3492.5,2.86325]
[1721542711725,0.01742761,3492.9,3492.6,2.9014014]
[1721542714174,0.01742761,3492.9,3492.8,0.00979426]
[1721542714542,0.01742761,3492.9,3492.8,0.04793471]
[1721542714772,0.01742761,3492.9,3492.8,0.00979426]
[1721542714978,0.01742761,3492.9,3492.8,0.04793471]
[1721542715135,0.01742761,3492.9,3492.8,0.00979426]
[1721542715341,0.01742761,3492.9,3492.8,0.04793471]
[1721542721207,0.01742761,3492.9,3492.8,0.03813772]
[1721542721573,0.01742761,3492.9,3492.8,0.03686637]
[1721542721773,0.01742761,3492.9,3492.6,2.81105471]
[1721542722275,0.01742761,3492.9,3492.7,0.03690184]
[1721542723811,0.01742761,3492.9,3491.8,3.745]
[1721542723812,0.01742761,3492.9,3491.8,0.745]
[1721542723970,1.36543596,3492.8,3492.2,2.86351]
[1721542724173,1.36543596,3492.8,3492.3,0.03449453]
[1721542724371,0.01742761,3492.9,3492.2,2.86351]
[1721542724372,1.36543596,3492.7,3492.2,2.86351]
[1721542724702,1.36543596,3492.6,3492.3,0.03449507]
[1721542724872,1.36543596,3492.5,3492.4,2.86336]
[1721542725274,1.36543596,3492.5,3492.4,2.89781959]
[1721542725508,1.36543596,3492.5,3492.4,0.03445959]
[1721542725889,1.36543038,3492.5,3492.3,2.86344]
[1721542726104,1.36543038,3492.4,3492.3,2.86344]
[1721542726418,1.36543038,3492.4,3492.1,2.86355]
[1721542726620,1.36543038,3492.3,3492.2,2.86352]
[1721542727811,1.36543038,3492.3,3492.2,5.72704]
[1721542728615,0.60580362,3492.9,3492.4,2.86335]
[1721542728811,1.3270459,3492.8,3492.4,2.86335]
[1721542729125,0.60580362,3492.9,3492.5,0.03442411]
[1721542729126,1.3270459,3492.7,3492.5,0.03442411]
[1721542729317,1.3270459,3492.6,3492.5,0.03442411]
[1721542729985,1.3270459,3492.7,3492.5,0.03442411]
[1721542730196,1.3270459,3492.7,3492.3,2.86342]
[1721542730197,1.3270459,3492.6,3492.3,2.86342]
[1721542730389,1.3270459,3492.5,3492.4,0.03445959]
[1721542730758,1.91542191,3492.7,3492.4,0.03445959]
[1721542731021,1.3270459,3492.6,3492.4,0.03445959]
[1721542731180,1.32689562,3492.5,3492.3,2.86341]
[1721542731380,1.32689562,3492.4,3492.3,2.86341]